bitfinex/quotes_BTCUSD_20240717
["timestamp","ask_amount","ask_price","bid_price","bid_amount"]
[1721186837954,0.00195,65733.0,65732.0,1.58799238]
[1721186838189,0.00195,65733.0,65732.0,1.70279016]
[1721186838410,0.00295,65733.0,65732.0,1.70279016]
[1721186839544,0.0256072,65733.0,65732.0,1.70279016]
[1721186840018,0.0256072,65733.0,65732.0,1.39852516]
[1721186840303,0.0256072,65733.0,65732.0,0.82733038]
[1721186840304,0.62884994,65733.0,65732.0,0.82733038]
[1721186840490,0.62884994,65733.0,65732.0,0.701]
[1721186840491,1.30574094,65733.0,65732.0,0.701]
[1721186840613,1.71000194,65733.0,65732.0,0.701]
[1721186840847,1.71001955,65733.0,65732.0,0.701]
[1721186841055,1.71017274,65733.0,65732.0,0.701]
[1721186841285,1.68634474,65733.0,65732.0,0.701]
[1721186841497,1.73217087,65733.0,65732.0,0.7]
[1721186841698,1.76794946,65733.0,65732.0,0.701]
[1721186841901,1.75994946,65733.0,65732.0,0.7]
[1721186842210,2.06421046,65733.0,65732.0,0.7]
[1721186842434,1.114976,65729.0,65728.0,0.000924]
[1721186842669,1.68196246,65729.0,65728.0,0.000924]
[1721186842943,1.70496246,65729.0,65728.0,0.000924]
[1721186843169,2.10924146,65729.0,65728.0,0.000924]
[1721186843668,2.05924146,65729.0,65728.0,0.000924]
[1721186843884,2.07324146,65729.0,65728.0,0.001924]
[1721186844116,2.28385565,65729.0,65728.0,0.001924]
[1721186844561,2.26985565,65729.0,65728.0,0.000924]
[1721186844785,2.28385565,65729.0,65728.0,0.001924]
[1721186845468,2.29785565,65729.0,65728.0,0.002924]
[1721186849087,2.29786242,65729.0,65728.0,0.002924]
[1721186849750,2.57436283,65729.0,65728.0,0.002924]
[1721186850016,2.60216174,65729.0,65728.0,0.002924]
[1721186850510,2.57437276,65729.0,65728.0,0.002924]
[1721186850759,2.55131574,65729.0,65728.0,0.002924]
[1721186851004,2.57437294,65729.0,65728.0,0.002924]
[1721186851910,2.72872251,65729.0,65728.0,1e-06]
[1721186852123,2.72872251,65729.0,65710.0,0.04928522]
[1721186852124,1.20797,65711.0,65710.0,0.04928522]
[1721186852359,1.65590894,65711.0,65710.0,0.04928522]
[1721186852622,1.65590894,65711.0,65690.0,0.0654]
[1721186852623,0.152227,65691.0,65690.0,0.0654]
[1721186852853,0.45669,65690.0,65689.0,0.0832]
[1721186853573,0.76115,65690.0,65689.0,0.0832]
[1721186853793,0.76115,65690.0,65688.0,0.000924]
[1721186853794,1.065624,65689.0,65688.0,0.000924]
[1721186853986,1.22000574,65689.0,65688.0,0.000924]
[1721186856025,0.92954174,65689.0,65688.0,0.000924]
[1721186856571,0.94354174,65689.0,65688.0,0.000924]
[1721186856776,0.92954174,65689.0,65688.0,0.000924]
[1721186857174,0.94354174,65689.0,65688.0,0.000924]
[1721186857846,0.91554174,65689.0,65688.0,0.000924]
[1721186858096,0.92954174,65689.0,65688.0,0.000924]
[1721186858504,0.91554174,65689.0,65688.0,0.000924]
[1721186858866,0.92954174,65689.0,65688.0,0.000924]
[1721186859274,0.94354174,65689.0,65688.0,0.000924]
[1721186859478,0.95754174,65689.0,65688.0,0.000924]
[1721186859685,0.92954174,65689.0,65688.0,0.000924]
[1721186860031,0.95654174,65689.0,65688.0,0.000924]
[1721186860831,0.94354174,65689.0,65688.0,0.000924]
[1721186861271,0.94154174,65689.0,65688.0,0.000924]
[1721186861476,0.92754174,65689.0,65688.0,0.000924]
[1721186861681,1.08454174,65689.0,65688.0,0.000924]
[1721186861895,1.38900574,65689.0,65688.0,0.000924]
[1721186862242,1.47600574,65689.0,65688.0,0.000924]
[1721186862410,1.47700574,65689.0,65688.0,0.000924]
[1721186862827,1.48900574,65689.0,65688.0,0.000924]
[1721186863038,1.50300574,65689.0,65688.0,0.000924]
[1721186863238,1.46400574,65689.0,65688.0,0.000924]
[1721186863638,1.09444174,65689.0,65688.0,0.000924]
[1721186864078,1.01554174,65689.0,65688.0,0.000924]
[1721186864391,1.02954174,65689.0,65688.0,0.000924]
[1721186864844,1.04354174,65689.0,65688.0,0.00087628]
[1721186865444,1.02954174,65689.0,65688.0,0.00087628]
[1721186865716,1.04354174,65689.0,65688.0,0.00087628]
[1721186866446,1.43150574,65689.0,65688.0,0.00087628]
[1721186867038,1.47981106,65689.0,65688.0,0.00087628]
[1721186869446,1.45650574,65689.0,65688.0,0.00087628]
[1721186869659,1.0918817,65689.0,65688.0,0.00087628]
[1721186869869,1.06854174,65689.0,65688.0,0.01514391]
[1721186870391,1.06854174,65689.0,65688.0,0.00087628]
[1721186870392,1.09198726,65689.0,65688.0,0.00087628]
[1721186871427,0.78752326,65689.0,65688.0,0.00087628]
[1721186871784,1.09198726,65689.0,65688.0,0.00087628]
[1721186872586,1.09199316,65689.0,65688.0,0.00087628]
[1721186874434,1.25359316,65689.0,65688.0,0.00087628]
[1721186874736,1.55805716,65689.0,65688.0,0.00087628]
[1721186875109,1.54405716,65689.0,65688.0,0.00087628]
[1721186875275,2.48173473,65689.0,65688.0,0.00087628]
[1721186875479,0.23296,65677.0,65676.0,0.04907668]
[1721186875680,0.71526747,65677.0,65676.0,0.04907668]
[1721186875944,0.304563,65668.0,65665.0,0.00277097]
[1721186876093,0.152285,65666.0,65665.0,0.00277097]
[1721186876296,0.456856,65666.0,65665.0,0.029699]
[1721186876502,0.761427,65666.0,65665.0,0.029699]
[1721186876727,0.15229,65664.0,65663.0,0.0753]
[1721186877070,0.15229,65664.0,65663.0,0.20177625]
[1721186878717,0.15329,65664.0,65663.0,0.0773]
[1721186878921,0.15329,65664.0,65663.0,0.20377594]
[1721186879122,0.15329,65664.0,65663.0,0.0773]
[1721186879392,0.15329,65664.0,65663.0,0.23284819]
[1721186879744,0.15429,65664.0,65663.0,0.23384819]
[1721186879946,0.45887,65664.0,65663.0,0.23384819]
[1721186880148,0.45887,65664.0,65663.0,0.12947589]
[1721186880357,0.48234414,65664.0,65663.0,0.12947945]
[1721186880623,0.17776414,65664.0,65663.0,0.12947945]
[1721186881200,0.17776486,65664.0,65663.0,0.003]
[1721186881400,0.17776486,65664.0,65663.0,0.15875274]
[1721186883017,0.02547486,65664.0,65663.0,0.15875274]
[1721186883426,0.002,65664.0,65663.0,0.15875274]
[1721186883679,0.02548049,65664.0,65663.0,0.46333774]
[1721186883938,0.002,65664.0,65663.0,1.06301474]
[1721186884403,0.002,65664.0,65663.0,1.06300246]
[1721186887837,0.002,65664.0,65663.0,1.06300247]
[1721186888856,0.002,65664.0,65663.0,0.45383247]
[1721186889154,0.002,65664.0,65663.0,0.23914047]
[1721186889355,0.15429,65664.0,65663.0,0.12946827]
[1721186889559,0.48229336,65664.0,65663.0,0.12946827]
[1721186890827,0.48232724,65664.0,65663.0,0.12947894]
[1721186891242,0.94128898,65664.0,65663.0,0.12947894]
[1721186891649,0.63670898,65664.0,65663.0,0.13040294]
[1721186892453,0.63670898,65664.0,65663.0,0.003924]
[1721186893210,0.63670898,65664.0,65663.0,0.13040374]
[1721186893353,0.63670898,65664.0,65663.0,0.003924]
[1721186893981,0.63666229,65664.0,65663.0,0.003924]
[1721186895035,0.02541055,65664.0,65663.0,0.15400234]
[1721186895263,0.02541055,65664.0,65663.0,1.06166434]
[1721186895264,0.002,65664.0,65663.0,1.06166434]
[1721186895499,0.002,65664.0,65663.0,0.75707934]
[1721186896943,0.001,65664.0,65663.0,0.75607934]
[1721186897159,0.152279,65669.0,65665.0,0.152288]
[1721186897359,0.02338809,65668.0,65666.0,0.07827027]
[1721186897566,0.02338809,65668.0,65666.0,0.0754993]
[1721186899406,0.30666474,65667.0,65666.0,0.0754993]
[1721186899619,0.001,65664.0,65663.0,0.176818]
[1721186899819,0.02438809,65664.0,65663.0,0.176818]
[1721186899994,0.02338809,65664.0,65663.0,0.176818]
[1721186900179,0.02338809,65666.0,65663.0,0.176818]
[1721186900378,0.02339651,65665.0,65664.0,0.0625338]
[1721186900897,0.02339651,65665.0,65664.0,0.2148238]
[1721186901303,0.152274,65671.0,65667.0,0.152281]
[1721186901500,0.17778597,65670.0,65667.0,0.152281]
[1721186901705,0.02340423,65669.0,65667.0,0.152281]
[1721186901879,0.02340423,65669.0,65668.0,0.05439208]
[1721186903216,0.02840423,65669.0,65668.0,0.05439208]
[1721186904222,0.03540423,65669.0,65668.0,0.05439208]
[1721186905561,0.32718597,65669.0,65664.0,0.0625338]
[1721186905762,0.48234997,65668.0,65663.0,0.176818]
[1721186905923,0.17568723,65667.0,65663.0,0.176818]
[1721186906130,0.17778597,65666.0,65665.0,0.152288]
[1721186906727,0.17778883,65666.0,65664.0,0.15229]
[1721186906930,0.005,65669.0,65663.0,0.024526]
[1721186906931,0.005,65669.0,65665.0,0.0867021]
[1721186907119,0.007,65669.0,65668.0,0.297881]
[1721186907669,0.03056114,65669.0,65668.0,0.297881]
[1721186907882,0.46234288,65669.0,65663.0,0.000924]
[1721186908082,0.15229,65664.0,65663.0,0.000924]
[1721186908285,0.63481288,65664.0,65663.0,0.000924]
[1721186908498,0.63481288,65664.0,65663.0,0.0308991]
[1721186908835,0.33023288,65664.0,65663.0,0.0308991]
[1721186909812,0.30667174,65664.0,65663.0,0.0308991]
[1721186910022,0.33044041,65664.0,65663.0,0.0308991]
[1721186910214,0.33044041,65664.0,65663.0,0.0318991]
[1721186910215,0.63502041,65664.0,65663.0,0.0318991]
[1721186910443,0.61125174,65664.0,65663.0,0.001924]
[1721186910597,0.63501919,65664.0,65663.0,0.001924]
[1721186911237,0.17914919,65664.0,65663.0,0.001924]
[1721186911639,0.02976745,65664.0,65663.0,0.601801]
[1721186911841,0.02976745,65664.0,65663.0,0.6623506]
[1721186912308,0.02976745,65664.0,65663.0,0.6613506]
[1721186912434,0.03276745,65664.0,65663.0,0.6613506]
[1721186912640,0.03276745,65664.0,65663.0,0.9659356]
[1721186912842,0.02376745,65664.0,65663.0,1.09240512]
[1721186913227,0.152268,65674.0,65669.0,0.152278]
[1721186913406,0.30664974,65674.0,65670.0,0.0536143]
[1721186914506,0.15438174,65673.0,65670.0,0.0536143]
[1721186914743,0.152287,65666.0,65664.0,0.00277097]
[1721186914944,0.0666,65671.0,65663.0,0.000924]
[1721186914945,0.15438174,65665.0,65663.0,0.000924]
[1721186915146,0.98195,65664.0,65663.0,0.000924]
[1721186915355,1.2848713,65664.0,65663.0,0.000924]
[1721186915473,1.31280377,65664.0,65663.0,0.000924]
[1721186915854,1.2848713,65664.0,65663.0,0.000924]
[1721186916026,1.28183174,65664.0,65663.0,0.000924]
[1721186916468,1.28183174,65664.0,65663.0,0.001924]
[1721186917134,1.20293174,65664.0,65663.0,0.001924]
[1721186917352,1.20393174,65664.0,65663.0,0.001924]
[1721186917703,0.67885174,65664.0,65663.0,0.001924]
[1721186917947,0.61225174,65664.0,65663.0,0.001924]
[1721186919053,0.61125174,65664.0,65663.0,0.001924]
[1721186919255,0.61125174,65664.0,65663.0,0.000924]
[1721186919448,0.62025174,65664.0,65663.0,0.000924]
[1721186919674,0.62825174,65664.0,65663.0,0.000924]
[1721186919900,0.93283174,65664.0,65663.0,0.000924]
[1721186920055,1.07343174,65664.0,65663.0,0.000924]
[1721186920458,1.11866192,65664.0,65663.0,0.000924]
[1721186920734,1.33916192,65664.0,65663.0,0.000924]
[1721186921292,1.29393174,65664.0,65663.0,0.000924]
[1721186921502,1.33918786,65664.0,65663.0,0.000924]
[1721186921955,1.29393174,65664.0,65663.0,0.000924]
[1721186922157,0.90905174,65664.0,65663.0,0.000924]
[1721186922367,0.90905174,65664.0,65663.0,0.146924]
[1721186922368,0.32367174,65664.0,65663.0,0.146924]
[1721186922558,0.62825174,65664.0,65663.0,0.146924]
[1721186922815,0.62825174,65664.0,65663.0,0.083924]
[1721186923135,0.62825174,65664.0,65663.0,0.0987088]
[1721186923628,0.32367174,65664.0,65663.0,0.0987088]
[1721186924346,0.32367174,65664.0,65663.0,0.083924]
[1721186925502,0.17138174,65664.0,65663.0,0.083924]
[1721186926731,0.32367174,65664.0,65663.0,0.083924]
[1721186927156,0.32367174,65664.0,65663.0,0.88226025]
[1721186927157,0.017,65664.0,65663.0,0.88226025]
[1721186927351,0.017,65664.0,65663.0,1.13089274]
[1721186927572,0.017,65664.0,65663.0,1.43547774]
[1721186928212,0.009,65664.0,65663.0,1.43547774]
[1721186928839,0.017,65664.0,65663.0,1.43547774]
[1721186929029,0.008,65664.0,65663.0,1.43546703]
[1721186929200,0.152262,65676.0,65671.0,0.152272]
[1721186929408,0.152262,65676.0,65672.0,0.0761387]
[1721186929409,0.28164374,65676.0,65672.0,0.0761387]
[1721186929611,0.28164374,65676.0,65672.0,0.07890967]
[1721186929821,0.304539,65673.0,65672.0,0.0761387]
[1721186930020,0.152278,65670.0,65664.0,0.30458]
[1721186930220,0.152278,65670.0,65666.0,0.152284]
[1721186930381,0.152278,65670.0,65667.0,0.00277097]
[1721186930595,0.152281,65668.0,65667.0,0.00277097]
[1721186930830,0.152281,65668.0,65666.0,0.152285]
[1721186930831,0.15438174,65668.0,65666.0,0.152285]
[1721186931002,0.15438174,65668.0,65667.0,0.0717534]
[1721186931204,0.15438174,65668.0,65664.0,0.152288]
[1721186931404,0.15438174,65668.0,65665.0,0.00277097]
[1721186931846,0.15438174,65668.0,65665.0,0.152287]
[1721186932141,0.15438174,65668.0,65664.0,0.15505997]
[1721186932580,0.15438174,65668.0,65665.0,0.12646274]
[1721186932890,0.15438174,65668.0,65666.0,0.10995919]
[1721186933257,0.16438174,65668.0,65666.0,0.10995919]
[1721186933455,0.31666274,65668.0,65664.0,0.00277097]
[1721186934075,0.31066274,65668.0,65664.0,0.00277097]
[1721186935294,0.30666274,65668.0,65664.0,0.00277097]
[1721186935482,0.30666274,65668.0,65665.0,0.05445]
[1721186935677,0.31066274,65668.0,65665.0,0.05445]
[1721186935880,0.31066274,65668.0,65666.0,0.00277097]
[1721186936133,0.16438174,65668.0,65666.0,0.00277097]
[1721186936309,0.16038174,65668.0,65665.0,0.05445]
[1721186936475,0.16038174,65668.0,65666.0,0.09284637]
[1721186936676,0.17038174,65668.0,65667.0,0.0654]
[1721186936901,0.15838174,65668.0,65667.0,0.0654]
[1721186937080,0.15438174,65668.0,65667.0,0.0654]
[1721186937279,0.16038174,65668.0,65667.0,0.0654]
[1721186937493,0.16038174,65668.0,65667.0,0.14056394]
[1721186938112,0.16438174,65668.0,65667.0,0.14056394]
[1721186938643,0.15838174,65668.0,65667.0,0.14056394]
[1721186938987,0.16438174,65668.0,65667.0,0.14056394]
[1721186939392,0.16038174,65668.0,65667.0,0.14056394]
[1721186939647,0.006,65668.0,65667.0,0.29284694]
[1721186939848,0.006,65668.0,65667.0,0.80167751]
[1721186939849,0.01,65668.0,65667.0,0.80167751]
[1721186940025,0.01,65668.0,65667.0,0.67521294]
[1721186940226,0.01,65668.0,65667.0,1.10623769]
[1721186940890,0.01,65668.0,65667.0,0.97977894]
[1721186941141,0.01,65668.0,65667.0,1.10623366]
[1721186943695,0.01,65668.0,65667.0,0.97977894]
[1721186943892,0.01,65668.0,65667.0,1.10623362]
[1721186944094,0.16438174,65668.0,65667.0,0.20161862]
[1721186944302,0.37986274,65668.0,65667.0,0.07516394]
[1721186944499,0.22758174,65668.0,65665.0,0.152286]
[1721186944899,0.22758174,65668.0,65666.0,0.00277097]
[1721186945299,0.22758174,65668.0,65665.0,0.152286]
[1721186945520,0.22758174,65668.0,65666.0,0.00277097]
[1721186945718,0.22758174,65668.0,65665.0,0.152286]
[1721186945937,0.22758174,65668.0,65666.0,0.0763309]
[1721186946136,0.16438174,65668.0,65666.0,0.0763309]
[1721186946358,0.16038174,65668.0,65666.0,0.2286159]
[1721186946483,0.16038174,65668.0,65667.0,0.00277097]
[1721186946684,0.15838174,65668.0,65666.0,0.2286159]
[1721186946880,0.15838174,65668.0,65667.0,0.05350449]
[1721186947196,0.16038174,65668.0,65667.0,0.05350449]
[1721186947397,0.15438174,65668.0,65667.0,0.05350449]
[1721186947598,0.15838174,65668.0,65667.0,0.05350449]
[1721186947800,0.16438174,65668.0,65667.0,0.05350449]
[1721186948275,0.16038174,65668.0,65667.0,0.05350449]
[1721186949348,0.006,65668.0,65667.0,0.13440449]
[1721186949553,0.006,65668.0,65667.0,0.28668749]
[1721186949827,0.01,65668.0,65667.0,0.28668749]
[1721186954110,0.006,65668.0,65667.0,0.28668749]
[1721186954456,0.013,65668.0,65667.0,0.28668749]
[1721186955033,0.006,65668.0,65667.0,0.28668749]
[1721186955188,0.01,65668.0,65667.0,0.28761149]
[1721186955806,0.01,65668.0,65667.0,0.05442849]
[1721186956012,0.0734,65668.0,65667.0,0.05442849]
[1721186956796,0.38006274,65668.0,65667.0,0.000924]
[1721186958506,0.98918674,65668.0,65667.0,0.000924]
[1721186959740,1.0170553,65668.0,65667.0,0.000924]
[1721186960615,0.98918674,65668.0,65667.0,0.000924]
[1721186962212,1.08504077,65668.0,65667.0,0.000924]
[1721186962796,1.08504608,65668.0,65667.0,0.000924]
[1721186964350,1.02164608,65668.0,65667.0,0.000924]
[1721186964550,1.02164608,65668.0,65667.0,0.0154512]
[1721186965490,1.03459972,65668.0,65667.0,0.0154512]
[1721186966220,1.03460698,65668.0,65667.0,0.0154512]
[1721186966823,1.03464271,65668.0,65667.0,0.0154512]
[1721186968341,1.03468055,65668.0,65667.0,0.0154512]
[1721186968498,0.9937581,65668.0,65667.0,0.0154512]
[1721186970840,0.2323531,65668.0,65667.0,0.0154512]
[1721186971027,0.16438174,65668.0,65667.0,0.0154512]
[1721186971674,0.01,65668.0,65667.0,0.1677342]
[1721186971993,0.01,65668.0,65667.0,0.0154512]
[1721186973287,0.03412037,65668.0,65667.0,0.0154512]
[1721186974689,0.01,65668.0,65667.0,0.0154512]
[1721186974887,0.03413452,65668.0,65667.0,0.0154512]
[1721186976439,0.94992126,65668.0,65667.0,0.0154512]
[1721186976998,0.64535926,65668.0,65667.0,0.0154512]
[1721186978002,0.62122474,65668.0,65667.0,0.0154512]
[1721186978210,0.03403066,65668.0,65667.0,0.0154512]
[1721186980392,0.18631166,65668.0,65667.0,0.0154512]
[1721186980974,0.9498174,65668.0,65667.0,0.0154512]
[1721186981172,0.9937775,65668.0,65667.0,0.000924]
[1721186981373,1.01786907,65668.0,65667.0,0.000924]
[1721186982260,1.19324325,65668.0,65667.0,0.000924]
[1721186982462,1.12525249,65668.0,65667.0,0.000924]
[1721186982660,1.23857043,65668.0,65667.0,0.000924]
[1721186983087,1.23457043,65668.0,65667.0,0.000924]
[1721186983292,1.22857043,65668.0,65667.0,0.000924]
[1721186983498,1.23657043,65668.0,65667.0,0.000924]
[1721186983866,1.24257043,65668.0,65667.0,0.000924]
[1721186984066,1.25557043,65668.0,65667.0,0.000924]
[1721186984273,1.21747886,65668.0,65667.0,0.000924]
[1721186984468,1.53280749,65668.0,65667.0,0.000924]
[1721186984720,1.55580749,65668.0,65667.0,0.000924]
[1721186984927,1.57922251,65668.0,65667.0,0.000924]
[1721186986023,1.57922163,65668.0,65667.0,0.000924]
[1721186986472,1.57922004,65668.0,65667.0,0.000924]
[1721186986675,2.09428204,65668.0,65667.0,0.000924]
[1721186986997,1.88378204,65668.0,65667.0,0.000924]
[1721186987203,2.01962678,65668.0,65667.0,0.000924]
[1721186987608,1.97211218,65668.0,65667.0,0.000924]
[1721186987806,2.00564154,65668.0,65667.0,0.000924]
[1721186988010,2.01964154,65668.0,65667.0,0.000924]
[1721186988412,1.88381428,65668.0,65667.0,0.000924]
[1721186988613,1.87081428,65668.0,65667.0,0.000924]
[1721186989020,1.88481428,65668.0,65667.0,0.000924]
[1721186990080,1.43275228,65668.0,65667.0,0.000924]
[1721186990266,1.40975228,65668.0,65667.0,0.000924]
[1721186990427,1.4003455,65668.0,65667.0,0.0155812]
[1721186990824,1.48940278,65668.0,65667.0,0.0155812]
[1721186991064,1.51354908,65668.0,65667.0,0.000924]
[1721186991492,1.49954908,65668.0,65667.0,0.000924]
[1721186991912,1.48554908,65668.0,65667.0,0.000924]
[1721186992090,1.49954908,65668.0,65667.0,0.000924]
[1721186992635,1.48554908,65668.0,65667.0,0.000924]
[1721186992806,1.49954908,65668.0,65667.0,0.000924]
[1721186993007,1.49906553,65668.0,65667.0,0.000924]
[1721186993489,1.20850353,65668.0,65667.0,0.0155812]
[1721186993662,0.90394153,65668.0,65667.0,0.0155812]
[1721186993918,0.79076167,65668.0,65667.0,0.0155812]
[1721186994104,0.85867972,65668.0,65667.0,0.0155812]
[1721186994306,1.13536754,65668.0,65667.0,0.0155812]
[1721186994481,1.13536873,65668.0,65667.0,0.0155812]
[1721186994683,1.0953092,65668.0,65667.0,0.0155812]
[1721186994883,0.85866629,65668.0,65667.0,0.0155812]
[1721186995490,1.16322829,65668.0,65667.0,0.000924]
[1721186995691,1.0953092,65668.0,65667.0,0.000924]
[1721186995893,0.7907472,65668.0,65667.0,0.000924]
[1721186996508,1.18586819,65668.0,65667.0,0.000924]
[1721186996901,1.1793092,65668.0,65667.0,0.000924]
[1721186997105,1.4597249,65668.0,65667.0,0.000924]
[1721186997308,1.59701029,65668.0,65667.0,0.000924]
[1721186997605,1.59701554,65668.0,65667.0,0.000924]
[1721186998364,1.48382135,65668.0,65667.0,0.000924]
[1721187000511,1.42282135,65668.0,65667.0,0.000924]
[1721187001075,1.5360438,65668.0,65667.0,0.000924]
[1721187001500,1.20849087,65668.0,65667.0,0.000924]
[1721187001711,1.20849087,65668.0,65667.0,0.082024]
[1721187001712,1.18584681,65668.0,65667.0,0.082024]
[1721187001880,1.09525935,65668.0,65667.0,0.0904112]
[1721187002077,1.18584675,65668.0,65667.0,0.0904112]
[1721187003268,1.09525935,65668.0,65667.0,0.0904112]
[1721187004966,1.09525935,65668.0,65667.0,0.0093112]
[1721187005193,1.16185935,65668.0,65667.0,0.000924]
[1721187005525,1.48942135,65668.0,65667.0,0.000924]
[1721187006320,1.79398335,65668.0,65667.0,0.000924]
[1721187006852,1.48942135,65668.0,65667.0,0.000924]
[1721187008220,1.48918633,65668.0,65667.0,0.000924]
[1721187009311,1.48915291,65668.0,65667.0,0.000924]
[1721187010909,1.42255291,65668.0,65667.0,0.000924]
[1721187011512,1.42255291,65668.0,65667.0,0.0087512]
[1721187012369,1.4226197,65668.0,65667.0,0.0087512]
[1721187012766,1.4320272,65668.0,65667.0,0.0087512]
[1721187014162,1.4320272,65668.0,65667.0,0.000924]
[1721187015420,1.4319935,65668.0,65667.0,0.000924]
[1721187017449,1.43198999,65668.0,65667.0,0.000924]
[1721187017651,1.65248999,65668.0,65667.0,0.000924]
[1721187017851,1.40898999,65668.0,65667.0,0.000924]
[1721187018029,1.10442799,65668.0,65667.0,0.0087512]
[1721187018213,1.20825635,65668.0,65667.0,0.0708512]
[1721187018411,0.90369435,65668.0,65667.0,0.0708512]
[1721187018623,0.85719194,65668.0,65667.0,0.0708512]
[1721187018839,0.88131135,65668.0,65667.0,0.0708512]
[1721187019088,0.4249519,65668.0,65667.0,0.0708512]
[1721187019277,0.3031539,65668.0,65667.0,0.1461512]
[1721187019474,0.05296094,65668.0,65667.0,0.1461512]
[1721187019907,0.09825984,65668.0,65667.0,0.1461512]
[1721187020468,0.0982585,65668.0,65667.0,0.1461512]
[1721187021451,0.0982585,65668.0,65667.0,0.6030002]
[1721187021818,0.05307637,65668.0,65667.0,0.6030002]
[1721187022919,0.03907637,65668.0,65667.0,0.6030002]
[1721187023125,0.05307637,65668.0,65667.0,0.6030002]
[1721187023489,0.03907637,65668.0,65667.0,0.6030002]
[1721187023740,0.02507637,65668.0,65667.0,0.6030002]
[1721187023956,0.02507637,65668.0,65667.0,0.72946359]
[1721187023957,0.03907637,65668.0,65667.0,0.72946359]
[1721187024393,0.04707637,65668.0,65667.0,1.03402959]
[1721187024594,0.05507637,65668.0,65667.0,1.03402959]
[1721187024797,0.06198499,65668.0,65667.0,1.03402208]
[1721187025221,0.03784,65668.0,65667.0,1.03402208]
[1721187026139,0.03784,65668.0,65667.0,1.33858808]
[1721187026316,0.03784,65668.0,65667.0,2.03858808]
[1721187027148,0.02284,65668.0,65667.0,2.03858808]
[1721187027486,0.00084,65668.0,65667.0,2.03858808]
[1721187027687,0.00784,65668.0,65667.0,2.03858808]
[1721187027886,0.00784,65668.0,65667.0,1.9121322]
[1721187028098,0.00784,65668.0,65667.0,2.03858059]
[1721187028453,0.00784,65668.0,65667.0,1.9121322]
[1721187028621,0.00484,65668.0,65667.0,2.03838125]
[1721187028818,0.00584,65668.0,65667.0,2.03838125]
[1721187029851,0.00184,65668.0,65667.0,2.03838125]
[1721187030375,0.00384,65668.0,65667.0,2.03838125]
[1721187031169,0.00384,65668.0,65667.0,2.03837474]
[1721187033115,0.00384,65668.0,65667.0,2.08837474]
[1721187033325,0.00384,65668.0,65667.0,2.34294074]
[1721187033524,0.00384,65668.0,65667.0,2.39294074]
[1721187033727,0.00384,65668.0,65667.0,2.34294074]
[1721187033931,0.00284,65668.0,65667.0,2.39294074]
[1721187034362,0.00184,65668.0,65667.0,2.54931872]
[1721187034688,0.00284,65668.0,65667.0,2.55131872]
[1721187035115,0.00184,65668.0,65667.0,2.54931872]
[1721187035313,0.00084,65676.0,65675.0,1.258051]
[1721187035530,0.00084,65676.0,65675.0,2.93082388]
[1721187035734,0.00084,65676.0,65675.0,3.01515525]
[1721187036148,0.00084,65676.0,65675.0,2.89150284]
[1721187036347,0.00084,65676.0,65675.0,2.88793854]
[1721187037418,0.00084,65676.0,65675.0,2.88992003]
[1721187037419,0.00184,65676.0,65675.0,2.88992003]
[1721187037624,0.00284,65676.0,65675.0,2.89192003]
[1721187040312,0.00284,65676.0,65675.0,2.58739103]
[1721187040539,0.00284,65676.0,65675.0,2.58739891]
[1721187040746,0.00284,65676.0,65675.0,2.46097076]
[1721187041099,0.00284,65676.0,65675.0,2.58739926]
[1721187042239,0.00284,65676.0,65675.0,2.58739657]
[1721187043197,0.00284,65676.0,65675.0,2.94192557]
[1721187043549,0.00284,65676.0,65675.0,3.0998609]
[1721187044662,0.00284,65676.0,65675.0,3.0498609]
[1721187046823,0.00284,65676.0,65675.0,3.04985773]
[1721187047479,0.00284,65676.0,65675.0,2.59094699]
[1721187049863,0.00284,65676.0,65675.0,2.46452809]
[1721187050041,0.00284,65676.0,65675.0,2.59095019]
[1721187052319,0.00284,65676.0,65675.0,2.79887039]
[1721187052802,0.00284,65676.0,65675.0,2.60924042]
[1721187053002,0.00284,65676.0,65675.0,2.46452809]
[1721187053209,0.00284,65676.0,65675.0,2.79887072]
[1721187053412,0.00284,65676.0,65675.0,2.78058063]
[1721187053652,0.00284,65676.0,65675.0,2.9885046]
[1721187053860,0.00284,65676.0,65675.0,3.0385046]
[1721187054101,0.00284,65676.0,65675.0,3.02021022]
[1721187054779,0.00284,65676.0,65675.0,2.97021022]
[1721187054944,0.00284,65676.0,65675.0,3.02021022]
[1721187056290,0.00284,65676.0,65675.0,2.97020745]
[1721187056469,0.00284,65676.0,65675.0,3.55629298]
[1721187057268,0.00284,65676.0,65675.0,3.47911819]
[1721187059450,0.00284,65676.0,65675.0,3.47911088]
[1721187061272,0.00284,65676.0,65675.0,3.28948098]
[1721187061909,0.00284,65676.0,65675.0,3.28948459]
[1721187062391,0.00284,65676.0,65675.0,3.37768459]
[1721187065093,0.00284,65676.0,65675.0,3.3776805]
[1721187067192,0.00284,65676.0,65675.0,3.5776805]
[1721187067422,0.00284,65676.0,65675.0,4.04541382]
[1721187067619,0.00284,65676.0,65675.0,4.24895039]
[1721187067825,0.00284,65676.0,65675.0,4.2034231]
[1721187067995,0.00284,65676.0,65675.0,4.4034231]
[1721187068195,0.00284,65676.0,65675.0,4.80924716]
[1721187068444,0.00284,65676.0,65675.0,4.74090683]
[1721187068588,0.00184,65676.0,65675.0,4.73890683]
[1721187068982,0.00284,65676.0,65675.0,6.24090683]
[1721187069206,0.00284,65676.0,65675.0,6.33202728]
[1721187069407,1e-06,65676.0,65675.0,6.68233639]
[1721187069664,1e-06,65676.0,65675.0,6.56643583]
[1721187070012,0.001001,65676.0,65675.0,6.57543583]
[1721187070869,1e-06,65676.0,65675.0,7.07543583]
[1721187071274,0.00084,65688.0,65687.0,2.065507]
[1721187071493,0.00084,65688.0,65687.0,3.51380632]
[1721187071695,0.00084,65688.0,65687.0,3.38742019]
[1721187071856,0.00084,65688.0,65687.0,3.513809]
[1721187072267,0.00084,65688.0,65687.0,3.425609]
[1721187073465,0.00284,65688.0,65687.0,3.425609]
[1721187074026,0.00384,65688.0,65687.0,3.425609]
[1721187074446,0.00384,65688.0,65687.0,3.42561048]
[1721187076232,0.00384,65688.0,65687.0,3.39389568]
[1721187076429,0.00384,65688.0,65687.0,3.18602879]
[1721187076841,0.00384,65688.0,65687.0,2.61605479]
[1721187077223,0.00384,65688.0,65687.0,2.54065479]
[1721187077667,0.00384,65688.0,65687.0,2.5406584]
[1721187077996,0.00384,65688.0,65687.0,1.98180266]
[1721187078131,0.00384,65688.0,65687.0,0.8263914]